bitfinex-derivatives/quotes_ETHF0:USTF0_20251223
["timestamp","ask_amount","ask_price","bid_price","bid_amount"]
[1766516522402,3.393,2948.6,2947.6,0.00440658]
[1766516522600,3.393,2948.6,2947.8,0.00090724]
[1766516525316,3.393,2948.6,2947.7,3.393]
[1766516525499,3.393,2948.6,2947.9,0.00090724]
[1766516529600,0.0832,2948.7,2948.0,3.393]
[1766516530099,0.00391139,2949.0,2948.1,4.87090724]
[1766516533609,40.96959,2949.7,2948.1,4.87090724]
[1766516533810,40.96959,2949.7,2948.6,0.00508751]
[1766516535819,0.17378679,2949.7,2948.6,3.39808751]
[1766516537319,0.00508751,2949.4,2948.4,3.392]
[1766516537522,3.392,2949.3,2948.4,3.392]
[1766516538222,3.392,2949.3,2948.6,0.00508751]
[1766516538418,0.17469751,2949.4,2948.6,0.00508751]
[1766516538419,0.25809751,2949.4,2948.6,0.00508751]
[1766516538621,9.639,2949.3,2948.4,3.392]
[1766516539822,9.639,2949.3,2948.6,0.00508751]
[1766516541121,0.17469751,2949.4,2948.6,0.00508751]
[1766516541320,9.638,2949.3,2948.6,0.00508751]
[1766516541822,9.638,2949.3,2948.4,3.392]
[1766516542925,9.638,2949.3,2948.6,0.00508751]
[1766516543127,0.00508751,2949.4,2948.7,3.392]
[1766516543323,3.392,2949.6,2948.7,3.392]
[1766516544329,0.00508751,2949.4,2948.7,3.392]
[1766516546524,3.392,2949.3,2948.6,0.00508751]
[1766516549035,3.392,2949.3,2948.4,3.392]
[1766516550129,3.392,2949.3,2948.1,5.57]
[1766516550338,3.56161,2949.3,2948.1,8.962]
[1766516551131,3.56161,2949.3,2948.4,0.00508751]
[1766516553434,9.635,2949.2,2948.4,0.00508751]
[1766516559239,0.16962,2949.1,2948.1,8.962]
[1766516559432,0.16963,2949.0,2948.1,8.962]
[1766516559631,0.16965,2948.7,2947.8,3.392]
[1766516559839,3.392,2948.6,2947.8,3.392]
[1766516560435,3.392,2948.6,2947.9,0.00508751]
[1766516564042,6.41165,2948.7,2947.9,0.00508751]
[1766516564043,0.16965,2948.7,2947.9,0.00508751]
[1766516564346,3.392,2948.6,2947.9,0.00508751]
[1766516565650,3.392,2948.6,2947.8,3.392]
[1766516566040,3.392,2948.6,2947.6,0.00349934]
[1766516566252,11.874,2948.6,2947.2,3.392]
[1766516566751,0.00508751,2948.2,2947.6,0.00339164]
[1766516566944,9.633,2948.1,2947.6,0.00339164]
[1766516567146,0.00508751,2948.2,2947.6,0.0059035]
[1766516567444,3.392,2948.1,2947.6,0.0059035]
[1766516569353,3.392,2948.1,2947.2,3.393]
[1766516570351,0.16969,2948.0,2946.8,3.393]
[1766516570550,0.16972,2947.5,2946.8,3.393]
[1766516570752,3.393,2947.4,2946.8,3.393]
[1766516571347,3.39615777,2947.4,2946.8,3.39677944]
[1766516571849,0.00315777,2947.4,2946.8,3.39677944]
[1766516572258,3.393,2947.8,2946.8,3.39677944]
[1766516573142,3.39555786,2947.8,2946.8,3.39677944]
[1766516575461,0.00255786,2947.8,2946.8,3.39677944]
[1766516583167,0.16971,2947.7,2946.8,3.39677944]
[1766516583357,3.393,2947.6,2946.8,3.39677944]
[1766516584766,3.393,2947.6,2946.8,0.00377944]
[1766516584767,7.921,2947.6,2946.8,0.00377944]
[1766516585061,7.921,2947.6,2946.5,3.393]
[1766516585966,7.921,2947.6,2946.5,3.39541863]
[1766516586564,0.16972,2947.5,2946.5,3.39541863]
[1766516587662,9.632,2947.4,2946.5,3.39541863]
[1766516589363,0.16972,2947.5,2946.5,3.39541863]
[1766516589665,3.394,2947.3,2946.5,3.39541863]
[1766516593065,0.16972,2947.5,2946.5,3.39541863]
[1766516593265,0.00255786,2947.8,2946.5,3.39541863]
[1766516593473,3.394,2948.0,2946.5,3.39541863]
[1766516594468,3.39733319,2948.0,2946.5,3.39541863]
[1766516595269,0.16968,2948.1,2946.5,3.39541863]
[1766516596075,0.16968,2948.1,2947.0,0.94037295]
[1766516596377,0.17274834,2948.1,2947.1,9.388]
[1766516596865,0.17274834,2948.1,2947.4,0.94037295]
[1766516596866,0.00306834,2948.1,2947.4,0.94037295]
[1766516597067,3.394,2948.7,2947.6,0.94037295]
[1766516597268,3.394,2948.7,2947.7,5.994]
[1766516597475,3.394,2948.7,2947.8,3.394]
[1766516597774,4.33437295,2948.7,2947.8,3.394]
[1766516597975,3.3965271,2948.7,2947.8,3.394]
[1766516598177,0.00508751,2948.5,2948.0,0.00508751]
[1766516599881,15.04882,2949.1,2948.0,0.00508751]
[1766516599882,0.16962,2949.1,2948.0,0.00508751]
[1766516600067,0.16959,2949.8,2948.1,3.393]
[1766516600275,1.45039348,2949.6,2948.2,1.572]
[1766516600575,42.25039348,2949.6,2948.2,1.572]
[1766516600780,0.16961,2949.4,2948.2,1.572]
[1766516600975,0.00508751,2949.1,2948.2,1.572]
[1766516602677,0.00315775,2949.4,2948.2,1.572]
[1766516603281,0.2646,2949.6,2948.2,1.572]
[1766516604176,0.26803362,2949.6,2948.2,1.572]
[1766516605575,0.00508751,2949.2,2948.2,1.572]
[1766516606277,3.39808751,2949.2,2948.1,0.1572]
[1766516606469,3.39808751,2949.2,2948.3,3.393]
[1766516607481,0.26803362,2949.6,2948.3,3.393]
[1766516608780,0.00339164,2949.2,2948.3,3.393]
[1766516610985,0.26803362,2949.6,2948.3,3.393]
[1766516619981,0.26803362,2949.6,2948.7,0.93934257]
[1766516620177,0.26803362,2949.6,2948.8,3.392]
[1766516620382,0.26803362,2949.6,2948.8,9.387]
[1766516621990,3.392,2950.2,2949.2,0.93934257]
[1766516622188,0.93934257,2950.1,2949.4,0.00508751]
[1766516622388,4.33134257,2950.2,2949.4,3.39708751]
[1766516623090,4.33380647,2950.2,2949.4,3.39708751]
[1766516623282,0.93934257,2950.0,2949.4,3.39708751]
[1766516624486,0.93934257,2949.8,2949.3,3.392]
[1766516625379,0.94443008,2949.8,2949.3,3.39708751]
[1766516625581,4.33643008,2949.8,2949.3,1.53366041]
[1766516625780,4.33643008,2949.8,2949.3,0.89196041]
[1766516628291,0.00508751,2949.8,2949.3,0.89196041]
[1766516631498,4.33280647,2950.2,2949.3,0.89196041]
[1766516631999,3.391,2950.1,2949.3,0.89196041]
[1766516632388,0.0024639,2950.2,2949.3,0.89196041]
[1766516632590,0.1695,2951.2,2949.8,0.93934257]
[1766516632790,3.391,2951.1,2950.0,0.93934257]
[1766516632999,0.93934257,2951.0,2950.1,3.391]
[1766516633508,0.00253244,2951.0,2950.1,3.391]
[1766516634010,4.33287501,2951.0,2950.1,3.391]
[1766516634897,3.39353244,2951.0,2950.1,3.391]
[1766516635101,4.33287501,2951.0,2950.1,3.391]
[1766516636205,0.93934257,2950.8,2950.1,3.391]
[1766516636411,3.391,2950.7,2949.3,0.00508751]
[1766516636705,0.93934257,2950.4,2949.4,3.391]
[1766516636896,3.391,2950.3,2949.4,3.391]
[1766516637099,1.13184257,2950.5,2949.4,3.391]
[1766516637393,3.391,2950.4,2949.4,3.391]
[1766516638804,4.33034257,2950.3,2949.4,3.391]
[1766516639808,3.391,2950.3,2949.4,3.391]
[1766516640603,4.33034257,2950.3,2949.4,3.391]
[1766516640811,0.93934257,2950.1,2949.4,3.391]
[1766516641002,0.93934257,2950.2,2949.4,3.391]
[1766516641400,0.93934257,2950.0,2949.4,3.391]
[1766516641605,0.93934257,2950.0,2949.3,0.00262361]
[1766516641606,3.391,2949.9,2949.3,0.00262361]
[1766516641803,3.391,2949.9,2949.0,3.391]
[1766516642806,0.00508751,2949.7,2949.2,0.00508751]
[1766516643911,0.00508751,2949.7,2949.0,3.391]
[1766516645009,0.00508751,2949.7,2949.1,0.00508751]
[1766516645810,4.33034257,2949.6,2949.0,3.391]
[1766516646010,4.33034257,2949.6,2948.7,0.00343961]
[1766516646011,0.93934257,2949.4,2948.7,3.39443961]
[1766516647016,0.93934257,2949.4,2948.8,0.00508751]
[1766516647318,3.391,2949.3,2948.8,0.00508751]
[1766516650112,0.1927,2949.5,2948.8,0.00508751]
[1766516650313,0.00508751,2949.7,2948.8,0.94443008]
[1766516650515,0.00508751,2949.7,2948.8,0.00508751]
[1766516654820,3.391,2949.9,2948.8,0.00508751]
[1766516655820,0.00508751,2949.6,2948.8,0.00508751]
[1766516658524,0.00508751,2949.6,2948.9,3.391]
[1766516662222,0.16955,2950.4,2948.9,3.391]
[1766516662425,3.391,2950.3,2948.9,3.391]
[1766516663324,0.00508751,2949.9,2948.9,3.391]
[1766516674229,0.00508751,2949.9,2948.8,0.00508751]
[1766516674432,3.391,2949.8,2948.9,3.391]
[1766516674625,3.391,2949.8,2948.9,3.469]
[1766516680729,0.00508751,2949.9,2948.9,3.469]
[1766516681029,3.39608751,2949.9,2948.9,3.469]
[1766516684432,0.00508751,2949.9,2948.9,3.469]
[1766516684626,3.39608751,2949.9,2948.9,3.469]
[1766516686037,3.391,2950.3,2948.9,3.469]
[1766516686837,3.391,2950.5,2948.9,3.469]
[1766516687731,0.00253244,2951.0,2949.2,0.93946337]
[1766516688033,3.391,2950.9,2949.3,3.391]
[1766516688229,3.391,2950.9,2949.4,8.478]
[1766516688434,3.391,2950.9,2949.5,2.619]
[1766516688632,3.391,2950.9,2949.6,3.391]
[1766516691936,0.00253244,2951.0,2949.6,3.391]
[1766516692143,3.391,2950.9,2949.6,3.391]
[1766516693141,3.391,2950.8,2949.6,3.391]
[1766516695039,0.00253244,2951.0,2949.6,3.56059]
[1766516695244,0.00253244,2951.0,2949.7,0.93946337]
[1766516695838,3.391,2951.5,2949.7,1.10905337]
[1766516696040,3.391,2951.5,2950.3,0.00508751]
[1766516696239,3.391,2951.5,2950.4,9.38]
[1766516697041,3.39466628,2951.5,2950.4,9.38]
[1766516698743,3.39466628,2951.5,2950.3,0.00508751]
[1766516698744,3.39466628,2951.5,2950.5,3.39]
[1766516700148,3.39,2951.4,2950.5,3.39]
[1766516702547,3.39366628,2951.5,2950.5,3.39]
[1766516703347,0.00366628,2951.5,2950.5,3.39]
[1766516703549,3.39366628,2951.5,2950.5,3.39]
[1766516706047,0.00366628,2951.5,2950.5,3.39]
[1766516706547,3.39,2951.4,2950.5,3.39]
[1766516708249,3.39,2951.4,2950.3,0.00508751]
[1766516708850,3.55949,2951.4,2950.2,3.39]
[1766516709054,3.55949,2951.4,2949.8,8.48]
[1766516709055,0.1695,2951.2,2949.9,3.39]
[1766516709251,3.39,2951.1,2949.9,3.39]
[1766516709452,6.216,2951.0,2949.9,3.39]
[1766516709958,0.00508751,2950.7,2950.2,0.00508751]
[1766516710158,3.39,2950.6,2949.9,3.39]
[1766516711154,3.39,2950.6,2950.0,0.00508751]
[1766516711547,0.00508751,2950.7,2950.1,3.39]
[1766516711954,0.00366628,2951.5,2950.1,3.39]
[1766516711955,0.00366628,2951.5,2950.1,9.056]
[1766516712152,0.00366628,2951.5,2950.1,17.532]
[1766516712353,3.39366628,2951.5,2950.1,17.532]
[1766516712953,0.00508751,2951.1,2950.1,5.987]
[1766516713158,0.00508751,2951.1,2950.2,3.39]
[1766516715258,3.39,2951.2,2950.2,3.39]
[1766516715456,3.39366628,2951.5,2950.2,3.39]
[1766516716057,4.33200356,2951.5,2950.3,0.93833728]
[1766516717454,0.93833728,2951.1,2950.2,3.39]
[1766516718059,0.00366628,2951.5,2950.2,3.39]
[1766516718266,3.39,2951.4,2950.3,0.93833728]
[1766516718565,3.39,2951.4,2950.2,3.39]
[1766516718866,0.93833728,2951.3,2950.2,3.39]
[1766516719270,3.39,2951.4,2950.3,0.93833728]
[1766516720573,0.94200356,2951.5,2950.3,0.93833728]
[1766516720870,3.39,2951.4,2950.3,0.93833728]
[1766516721964,3.39,2951.4,2950.2,4.32833728]
[1766516722571,0.93833728,2951.1,2950.2,3.39]
[1766516722765,0.93833728,2951.1,2950.0,0.94342479]
[1766516722766,0.93833728,2950.9,2950.0,0.00508751]
[1766516723071,0.93833728,2950.9,2948.7,4.19279647]
[1766516723072,0.93833728,2950.1,2948.7,0.00343961]
[1766516723275,0.93833728,2949.7,2948.7,3.39343961]
[1766516723574,0.93833728,2949.5,2948.7,3.39343961]
[1766516723771,3.39,2949.6,2948.8,3.39508751]
[1766516723962,0.00508751,2949.5,2948.9,0.00508751]
[1766516724565,0.00508751,2949.5,2949.2,3.39508751]
[1766516725070,0.00508751,2949.5,2949.2,2.79456231]
[1766516726367,3.39508751,2949.5,2949.2,2.79456231]
[1766516728377,0.00508751,2949.5,2948.9,0.00508751]
[1766516728678,3.39508751,2949.5,2949.2,2.74196231]
[1766516731073,10.115,2950.8,2949.3,0.93833728]
[1766516731280,9.611,2950.3,2949.4,2.74196231]
[1766516731568,10.54933728,2950.3,2949.4,2.74196231]
[1766516731975,6.221,2950.3,2949.4,2.74196231]
[1766516732176,3.391,2950.2,2949.4,2.74196231]
[1766516732374,41.73833728,2950.5,2949.5,3.391]
[1766516732676,6.223,2950.5,2949.5,4.32933728]
[1766516732879,3.391,2950.4,2949.5,4.32933728]
[1766516733474,3.391,2950.4,2949.5,3.391]
[1766516737671,0.93833728,2950.2,2949.5,3.391]
[1766516737976,9.614,2950.1,2949.5,3.391]
[1766516738181,0.93833728,2950.0,2949.5,3.391]
[1766516738375,0.93833728,2950.0,2949.4,2.74196231]
[1766516738576,9.614,2950.1,2949.4,6.13296231]
[1766516738782,0.16955,2950.4,2949.0,3.391]
[1766516738967,0.93833728,2950.2,2949.0,4.32933728]
[1766516739370,0.93833728,2950.2,2949.0,10.46229959]
[1766516739979,9.614,2950.3,2949.0,9.52396231]
[1766516745784,9.78356,2950.3,2949.0,9.52396231]
[1766516747583,9.612,2950.2,2949.0,9.52396231]
[1766516748280,0.16958,2950.0,2949.0,3.391]
[1766516748487,3.391,2949.9,2948.9,0.00508751]
[1766516749283,4.84011516,2949.9,2948.9,0.00508751]
[1766516749581,0.1696,2949.6,2948.9,0.00508751]
[1766516749781,9.612,2949.5,2948.9,0.00508751]
[1766516749982,9.612,2949.5,2948.9,6.13804982]
[1766516750890,0.16961,2949.4,2948.7,0.00343961]
[1766516751184,0.16961,2949.3,2948.7,9.61e-06]
[1766516751386,3.391,2949.2,2948.1,3.41827]
[1766516751578,0.16961,2949.3,2948.4,5.77344033]
[1766516751984,0.00508751,2949.1,2948.6,0.00508751]
[1766516752185,0.00508751,2949.1,2948.6,7.51e-06]
[1766516752485,0.00835879,2949.1,2948.6,0.00311213]
[1766516753088,0.00835879,2949.1,2948.6,5.77655246]
[1766516754586,0.00835879,2949.1,2948.7,5.34899033]
[1766516754787,0.00835879,2949.1,2948.7,4.97715033]
[1766516757704,0.00835879,2949.1,2948.9,4.45553033]
[1766516757887,0.00835879,2949.1,2948.6,0.00311213]
[1766516762391,9.62,2949.0,2948.6,0.00311213]
[1766516763205,10.55987067,2949.0,2948.6,0.00311213]
[1766516765506,10.55987067,2949.0,2947.4,8.479]
[1766516765507,0.93987067,2948.4,2947.5,3.392]
[1766516765710,9.622,2948.3,2947.9,0.02727]
[1766516766496,9.622,2948.3,2947.9,0.03126496]
[1766516769004,1.10952067,2948.6,2947.9,0.03126496]
[1766516769306,9.622,2948.5,2947.9,0.03126496]
[1766516770308,1.10952067,2948.6,2947.9,0.03126496]
[1766516770508,4.64,2948.5,2947.9,0.03126496]
[1766516772510,5.57987067,2948.5,2947.9,0.03126496]
[1766516772721,0.93987067,2948.2,2947.9,4.96e-06]
[1766516773020,4.64,2948.5,2947.9,4.96e-06]
[1766516773021,3.392,2948.1,2947.9,4.96e-06]
[1766516773222,9.622,2948.1,2947.9,4.96e-06]
[1766516774617,0.16967,2948.3,2947.9,4.96e-06]
[1766516775715,6.229,2948.2,2947.9,4.96e-06]
[1766516775915,9.621,2948.4,2947.9,4.96e-06]
[1766516776116,2.1966,2948.4,2947.9,4.96e-06]
[1766516776718,9.622,2948.5,2947.9,4.96e-06]
[1766516777016,7.235,2948.5,2947.9,4.96e-06]
[1766516777217,4.848,2948.5,2947.9,4.96e-06]
[1766516777620,0.16964,2948.9,2947.9,4.96e-06]
[1766516777819,0.16964,2948.9,2948.1,0.93987067]
[1766516778024,3.56264,2948.9,2948.2,3.393]
[1766516779315,3.56264,2948.9,2947.9,3.39300496]
[1766516779721,3.393,2948.9,2947.9,3.39300496]
[1766516780325,0.00835879,2949.1,2947.9,7.64300496]
[1766516780918,0.1696,2949.5,2947.9,7.64300496]
[1766516781122,3.5626,2949.5,2947.9,7.64300496]
[1766516782117,0.00508751,2949.0,2947.9,7.64300496]
[1766516782323,0.17392613,2949.5,2948.2,0.93983271]
[1766516782619,0.00432613,2949.5,2948.3,3.392]
[1766516785226,3.392,2949.9,2948.6,0.93983271]
[1766516785428,3.392,2949.9,2948.7,17.859]
[1766516785823,6.39757,2950.1,2948.7,17.859]
[1766516786018,3.392,2950.0,2948.7,17.859]
[1766516786528,3.39503807,2950.0,2948.7,17.859]
[1766516787224,0.00303807,2950.0,2948.7,17.859]
[1766516793638,3.39503807,2950.0,2948.7,17.859]
[1766516800036,3.56460807,2950.0,2948.7,17.859]
[1766516802131,0.16959,2949.7,2947.9,6.45000496]
[1766516802331,5.037,2949.6,2948.1,8.479]
[1766516802537,0.16959,2949.7,2948.1,8.479]
[1766516802731,6.539,2949.6,2948.1,8.479]
[1766516805541,1.01381102,2951.5,2949.2,0.93983271]
[1766516805747,0.16938,2953.3,2950.7,0.16953]
[1766516806049,0.593,2954.4,2952.2,0.93983271]
[1766516806050,3.894,2953.7,2952.2,0.93983271]
[1766516806240,0.16934,2954.1,2952.2,0.93983271]
[1766516806241,3.391,2953.8,2952.6,0.93983271]
[1766516806535,2.08067949,2955.4,2953.4,0.93983271]
[1766516806536,0.503,2954.5,2953.4,0.93983271]
[1766516806743,3.391,2955.2,2953.5,6.643]
[1766516806935,3.391,2955.2,2953.8,0.93983271]
[1766516807132,3.391,2955.2,2953.9,3.391]
[1766516807339,3.391,2955.2,2954.0,4.915]
[1766516807538,3.39533999,2955.2,2952.9,0.00507872]
[1766516807740,0.1693,2954.9,2953.0,3.391]
[1766516808044,3.39533999,2955.2,2952.9,0.00507872]
[1766516808045,0.16932,2954.4,2952.9,0.00507872]
[1766516808233,0.16934,2954.1,2952.9,0.00507872]
[1766516808436,3.56034,2954.0,2952.9,0.00507872]
[1766516808632,0.16935,2953.8,2952.9,0.00507872]
[1766516808843,8.095,2953.7,2952.7,3.391]
[1766516809345,3.39,2953.6,2952.6,0.003955]
[1766516809740,0.00504943,2953.4,2952.8,0.00507872]
[1766516809939,0.00504943,2953.4,2952.6,0.003955]
[1766516809940,3.39,2953.3,2952.6,0.003955]
[1766516810443,3.39,2953.2,2952.6,0.003955]
[1766516811041,3.39,2953.2,2952.6,0.00903372]
[1766516811344,0.00433999,2955.2,2952.7,9.162]
[1766516811547,0.00433999,2955.2,2952.6,0.00903372]
[1766516811548,6.219,2954.8,2952.6,0.00903372]
[1766516811840,0.16933,2954.3,2952.7,3.389]
[1766516812047,5.29733,2954.2,2952.7,3.389]
[1766516812343,0.00507872,2953.7,2952.7,3.389]
[1766516812843,3.389,2953.9,2952.7,3.389]
[1766516814240,3.55835,2953.9,2952.7,3.389]
[1766516814545,0.16937,2953.6,2952.6,0.00903372]
[1766516814738,3.12537,2953.6,2952.6,0.00903372]
[1766516814938,0.16932,2954.5,2952.7,3.389]
[1766516815344,3.389,2954.4,2952.7,3.389]
[1766516815640,3.55832,2954.4,2952.7,3.389]
[1766516816839,0.16933,2954.3,2952.7,3.389]
[1766516817245,9.606,2954.2,2952.7,3.389]
[1766516819639,9.77533,2954.2,2952.7,3.389]
[1766516820644,0.16933,2954.2,2952.7,3.389]
[1766516820842,3.388,2954.1,2952.7,3.389]
[1766516823536,0.16935,2953.9,2952.6,0.00903372]
[1766516823738,9.615,2953.8,2952.6,0.00903372]
[1766516824049,0.16937,2953.6,2952.6,0.00903372]
[1766516824253,3.387,2953.5,2952.6,0.00903372]
[1766516824549,3.783,2953.4,2952.6,0.00903372]
[1766516825143,6.228,2953.3,2952.6,0.00903372]
[1766516825342,3.387,2953.2,2952.6,0.00903372]
[1766516827742,3.387,2953.2,2949.5,6.45]
[1766516827942,3.387,2953.2,2945.6,7.78023417]
[1766516827943,3.387,2953.2,2951.5,11.935]
[1766516828962,0.00507872,2952.6,2952.1,0.00507872]
[1766516829156,0.00801868,2952.6,2952.1,0.00507872]
[1766516830348,0.00801868,2952.6,2952.0,3.387]
[1766516830554,3.387,2952.5,2952.0,3.387]
[1766516830751,3.387,2952.5,2951.7,3.387]
[1766516831459,3.387,2952.5,2951.8,0.00507872]
[1766516836757,3.388,2952.4,2951.8,0.00507872]
[1766516836957,0.00801868,2952.6,2951.8,0.00507872]
[1766516837152,3.388,2952.5,2951.8,0.00507872]
[1766516838664,3.388,2952.5,2951.7,3.387]
[1766516838858,3.388,2952.5,2951.5,8.55109376]
[1766516838859,3.388,2952.5,2951.5,0.08209376]
[1766516839763,3.388,2952.5,2951.7,0.00507872]
[1766516840067,3.388,2952.5,2951.5,0.00309376]
[1766516840960,3.388,2952.5,2951.7,0.00507872]
[1766516841161,3.388,2952.5,2951.5,0.00309376]
[1766516841964,3.388,2952.5,2951.1,10.807]
[1766516841965,3.55743,2952.5,2951.1,5.725]
[1766516842166,0.16944,2952.4,2951.1,3.388]
[1766516842564,40.8,2952.3,2951.1,3.388]
[1766516842859,3.388,2952.2,2951.1,3.388]
[1766516843065,6.225,2952.1,2951.4,0.00338581]
[1766516843664,6.225,2952.1,2951.1,3.39039085]
[1766516852271,6.225,2952.1,2951.1,0.00239085]
[1766516853563,6.225,2952.1,2950.8,3.388]
[1766516853769,0.16946,2952.0,2950.8,3.388]
[1766516853972,3.388,2951.9,2950.8,3.388]
[1766516854269,44.188,2951.9,2950.8,3.388]
[1766516854973,44.188,2951.9,2950.8,3.39100136]
[1766516855769,44.35746,2951.9,2950.8,3.39100136]
[1766516856166,44.35746,2951.9,2950.8,0.00300136]
[1766516859773,6.257,2951.8,2950.8,0.00300136]
[1766516860875,40.8,2951.7,2950.8,0.00300136]
[1766516861075,3.389,2951.6,2950.8,0.00300136]
[1766516861271,6.266,2951.5,2950.8,0.00300136]
[1766516861479,9.655,2951.5,2950.8,0.00300136]
[1766516862773,6.272,2951.4,2950.8,0.00300136]
[1766516862972,0.16946,2951.9,2950.9,3.389]
[1766516863177,9.661,2951.8,2950.9,3.389]
[1766516868583,9.83047,2951.8,2950.9,3.389]
[1766516868782,0.16947,2951.7,2950.9,3.389]
[1766516869784,9.66,2951.6,2950.9,3.389]
[1766516870284,9.66,2951.6,2950.8,0.00300136]
[1766516870678,0.28617,2951.7,2950.8,0.00300136]
[1766516870881,9.66,2951.6,2950.8,0.00300136]
[1766516873890,0.16947,2951.7,2950.8,3.39200136]
[1766516874091,9.659,2951.6,2950.8,3.39200136]
[1766516875787,6.43947,2951.7,2950.8,3.39200136]
[1766516876089,3.389,2951.6,2950.8,3.39200136]
[1766516876290,6.43947,2951.7,2950.8,3.39200136]
[1766516876291,0.16947,2951.7,2950.8,3.39200136]
[1766516877484,0.16947,2951.7,2950.8,9.36900136]
[1766516881084,3.389,2951.6,2950.8,9.36900136]
[1766516881286,3.389,2951.6,2950.8,1.36e-06]
[1766516881588,0.16947,2951.7,2950.8,1.36e-06]
[1766516881790,8.204,2951.6,2950.8,1.36e-06]
[1766516882093,3.389,2951.5,2950.8,1.36e-06]
[1766516886190,3.389,2951.5,2949.0,3.01849436]
[1766516886191,1.44753246,2951.3,2949.0,3.01849436]
[1766516886395,0.00507872,2950.4,2949.1,13.619]
[1766516886597,3.39407872,2950.4,2949.2,3.389]
[1766516887090,0.00507872,2950.4,2949.3,1.44753246]
[1766516887292,1.21353225,2952.1,2949.3,1.44753246]
[1766516887293,3.389,2950.8,2949.7,1.44753246]
[1766516887487,3.389,2950.8,2949.8,3.389]
[1766516887687,46.5924,2951.1,2949.8,3.389]
[1766516887887,3.389,2950.9,2949.8,3.389]
[1766516888595,0.00507872,2950.6,2949.8,3.389]
[1766516891589,3.389,2950.5,2949.6,0.00507872]
[1766516893102,3.55854,2950.5,2949.4,3.389]
[1766516893892,3.55854,2950.5,2949.3,0.00306033]
[1766516893893,0.16954,2950.5,2949.3,0.00306033]
[1766516894089,3.39,2950.5,2949.4,4.83753246]
[1766516894401,0.00507872,2950.6,2949.4,4.83753246]
[1766516894604,3.39,2950.5,2949.4,4.83753246]
[1766516895199,3.39507872,2950.6,2949.5,8.475]
[1766516896298,0.00507872,2950.6,2949.5,8.475]
[1766516896709,3.39507872,2950.6,2949.5,8.475]
[1766516897102,3.39507872,2950.6,2949.6,5.977]
[1766516897302,3.39507872,2950.6,2949.7,3.39]
[1766516898806,0.00507872,2950.6,2949.7,3.39]
[1766516899310,0.0028748,2950.9,2949.7,3.39]
[1766516899506,0.16946,2951.9,2950.3,1.44753246]
[1766516899708,3.39,2951.8,2950.4,9.316]
[1766516900409,0.00507872,2951.4,2950.8,0.00507872]
[1766516900609,3.39,2951.3,2950.8,0.00507872]
[1766516901507,3.39,2951.3,2950.4,9.316]
[1766516907116,0.00784588,2951.4,2950.4,9.316]
[1766516911212,3.39,2951.3,2950.4,9.316]
[1766516912622,9.8235,2951.3,2950.1,3.39]
[1766516913022,0.1695,2951.2,2950.1,3.39]
[1766516913324,0.1695,2951.2,2949.9,4.562]
[1766516913722,0.16952,2951.0,2949.3,0.00306033]
[1766516914029,3.39,2950.9,2949.6,0.0684]
[1766516914225,3.39,2950.9,2949.7,3.39]
[1766516914427,40.8,2950.8,2949.7,3.39]
[1766516914628,5.402,2950.7,2949.7,3.39]
[1766516914929,3.39,2950.6,2949.7,3.39]
[1766516917027,40.8,2950.8,2949.7,3.39]
[1766516917232,3.39,2950.7,2949.7,3.39]
[1766516921034,3.55954,2950.7,2949.5,2.105]
[1766516921235,3.55954,2950.7,2949.4,3.39]
[1766516921628,0.16954,2950.6,2949.4,3.39]
[1766516921830,0.16955,2950.4,2949.4,3.39]
[1766516922028,9.662,2950.3,2949.4,3.39]
[1766516922225,0.16957,2950.1,2949.1,3.39]
[1766516922424,0.00507872,2949.9,2949.1,3.39]
[1766516922629,6.073,2949.8,2948.8,3.39]
[1766516922833,3.39,2949.7,2948.9,0.0684]
[1766516923028,3.39,2949.7,2948.8,3.39]
[1766516923230,3.39,2949.7,2948.8,3.39253216]
[1766516927535,0.00507872,2949.9,2948.8,3.39253216]
[1766516927734,3.479,2949.8,2948.8,3.39253216]
[1766516931242,0.00507872,2949.9,2948.8,3.39253216]
[1766516931445,4.92,2949.7,2948.8,3.39253216]
[1766516935142,3.391,2949.6,2948.8,3.39253216]
[1766516938249,44.191,2949.6,2948.8,3.39253216]
[1766516939331,44.191,2949.6,2948.8,0.00253216]
[1766516940342,3.391,2949.6,2948.8,0.00253216]
[1766516940948,44.191,2949.6,2948.8,0.00253216]
[1766516941150,0.00507872,2949.9,2948.8,3.39353216]
[1766516941336,3.391,2949.8,2948.8,3.39353216]
[1766516941643,4.53207872,2949.9,2948.8,3.39353216]
[1766516941832,3.391,2949.7,2948.8,3.39353216]
[1766516943149,3.391,2949.7,2948.8,0.00253216]
[1766516944949,0.17465872,2949.9,2948.8,0.00253216]
[1766516945152,9.678,2949.8,2948.8,0.00253216]
[1766516950152,0.17465872,2949.9,2948.8,0.00253216]
[1766516950349,6.286,2949.7,2948.8,0.00253216]
[1766516952760,0.17465872,2949.9,2948.8,0.00253216]
[1766516953155,9.677,2949.8,2948.8,0.00253216]
[1766516953558,9.84659,2949.8,2948.8,0.00253216]
[1766516953954,0.1696,2949.6,2948.8,0.00253216]
[1766516954153,0.1696,2949.6,2948.3,3.391]
[1766516954154,3.391,2949.5,2948.3,3.391]
[1766516954352,6.285,2949.4,2948.3,3.391]
[1766516955049,6.285,2949.4,2948.3,3.39344299]
[1766516961965,6.285,2949.4,2948.5,0.9395039]
[1766516965853,6.285,2949.4,2948.3,4.33294689]
[1766516966458,7.3941139,2949.4,2948.3,4.33294689]
[1766516966860,7.3941139,2949.4,2948.3,3.39344299]